fUST/lending_fUST_20260206
["ID","MTS","AMOUNT","RATE_DAILY","PERIOD"]
[404581145,1770311437749,-573.72007375,0.00014795,2]
[404581146,1770311437758,-527.96138248,0.00014795,2]
[404581147,1770311437767,-199.0,0.00015,2]
[404581148,1770311437777,-300.0,0.0001509,2]
[404581149,1770311437788,-300.0,0.0001509,2]
[404581150,1770311437798,-300.0,0.0001509,2]
[404581151,1770311437807,-300.0,0.0001509,2]
[404581152,1770311437816,-300.0,0.0001509,2]
[404581153,1770311437826,-300.0,0.0001509,2]
[404581154,1770311437835,-300.0,0.0001509,2]
[404581155,1770311437844,-300.0,0.0001509,2]
[404581156,1770311437853,-300.0,0.0001509,2]
[404581157,1770311437862,-300.0,0.0001509,2]
[404581158,1770311437871,-300.0,0.0001509,2]
[404581159,1770311437880,-300.0,0.0001509,2]
[404581160,1770311437890,-300.0,0.0001509,2]
[404581161,1770311437903,-300.0,0.0001509,2]
[404581162,1770311437912,-300.0,0.0001509,2]
[404581163,1770311437922,-225.19,0.000153,2]
[404581164,1770311437935,-600.0,0.00015391,2]
[404581165,1770311437945,-720.0,0.0001693,2]
[404581166,1770311437954,-339.74813332,0.00017501,2]
[404581167,1770311438124,-159.3344614,0.00018475,2]
[404581168,1770311438135,-864.0,0.00018623,2]
[404581169,1770311438144,-158.36438735,0.00018686,2]
[404581170,1770311438157,-396.56913299,0.00018776,2]
[404581171,1770311438167,-611.54663997,0.00019785,2]
[404581172,1770311438176,-1000.0,0.00020485,2]
[404581173,1770311438185,-1087.19402661,0.00022069,2]
[404581174,1770311438195,-509.73924692,0.00022534,10]
[404581175,1770311438204,-1000.0,0.00022534,10]
[404581176,1770311438214,-244.0,0.00022534,10]
[404581177,1770311438223,-1000.0,0.00024787,10]
[404581178,1770311438232,-492.0,0.00024787,10]
[404581179,1770311438241,-1895.7702605,0.00026867,2]
[404581180,1770311438250,-1000.0,0.00027266,30]
[404581181,1770311438259,-791.0,0.00027266,30]
[404581182,1770311438269,-271.93250582,0.00029892,2]
[404581183,1770311438278,-462.0021302,0.00029906,2]
[404581184,1770311438287,-1000.0,0.00029992,30]
[404581185,1770311438296,-1000.0,0.00029992,30]
[404581186,1770311438306,-500.0,0.00030137,10]
[404581187,1770311438315,-500.0,0.00030137,2]
[404581188,1770311438324,-187.651,0.0003255,32]
[404581189,1770311438333,-311.14828257,0.00032866,2]
[404581190,1770311438342,-2223.468196,0.00032867,2]
[404581191,1770311438351,-887.38,0.00032867,3]
[404581192,1770311438360,-443.69,0.00032867,3]
[404581193,1770311438369,-221.84,0.00032867,3]
[404581194,1770311438378,-154.53,0.00032867,3]
[404581195,1770311438387,-681.7,0.00032867,3]
[404581196,1770311438401,-181.72,0.00032867,3]
[404581197,1770311438411,-545.18,0.00032867,3]
[404581198,1770311438429,-7597.46,0.00032867,10]
[404581199,1770311438442,-741.26793723,0.00032877,7]
[404581200,1770311438452,-1386.05863654,0.00032877,7]
[404581201,1770311438462,-1386.05863654,0.00032877,7]
[404581202,1770311438472,-1386.05863654,0.00032877,7]
[404581203,1770311438482,-1386.05863654,0.00032877,7]
[404581204,1770311438492,-1386.05863654,0.00032877,7]
[404581205,1770311438502,-1386.05863654,0.00032877,7]
[404581206,1770311438512,-1386.05863654,0.00032877,7]
[404581207,1770311438521,-1386.05863654,0.00032877,7]
[404581208,1770311438531,-1386.05863654,0.00032877,7]
[404581209,1770311438540,-1386.05863654,0.00032877,7]
[404581210,1770311438550,-1386.05863654,0.00032877,7]
[404581211,1770311438559,-1386.05863654,0.00032877,7]
[404581212,1770311438569,-1386.05863654,0.00032877,7]
[404581213,1770311438580,-1386.05863654,0.00032877,7]
[404581214,1770311438590,-1386.05863654,0.00032877,7]
[404581215,1770311438600,-1386.05863654,0.00032877,7]
[404581216,1770311438609,-1386.05863654,0.00032877,7]
[404581217,1770311438619,-1386.05863654,0.00032877,7]
[404581218,1770311438628,-1386.05863654,0.00032877,7]
[404581219,1770311438638,-1386.05863654,0.00032877,7]
[404581220,1770311438650,-1386.05863654,0.00032877,7]
[404581221,1770311438659,-1386.05863654,0.00032877,7]
[404581222,1770311438669,-1386.05863654,0.00032877,7]
[404581223,1770311438678,-1386.05863654,0.00032877,7]
[404581224,1770311438688,-1386.05863654,0.00032877,7]
[404581225,1770311438697,-1386.05863654,0.00032877,7]
[404581226,1770311438706,-1386.05863654,0.00032877,7]
[404581227,1770311438716,-1386.05863654,0.00032877,7]
[404581228,1770311438726,-1386.05863654,0.00032877,7]
[404581229,1770311438736,-1386.05863654,0.00032877,7]
[404581230,1770311438746,-1386.05863654,0.00032877,7]
[404581231,1770311438755,-1386.05863654,0.00032877,7]
[404581232,1770311438765,-1386.05863654,0.00032877,7]
[404581233,1770311438774,-1386.05863654,0.00032877,7]
[404581234,1770311438783,-1386.05863654,0.00032877,7]
[404581235,1770311438793,-1386.05863654,0.00032877,7]
[404581236,1770311438802,-1386.05863654,0.00032877,7]
[404581237,1770311438812,-1386.05863654,0.00032877,7]
[404581238,1770311438821,-1386.05863654,0.00032877,7]
[404581239,1770311438830,-1386.05863654,0.00032877,7]
[404581240,1770311438839,-1386.05863654,0.00032877,7]
[404581241,1770311438849,-1386.05863654,0.00032877,7]
[404581242,1770311438859,-1386.05863654,0.00032877,7]
[404581243,1770311438868,-1386.05863654,0.00032877,7]
[404581244,1770311438877,-1386.05863654,0.00032877,7]
[404581245,1770311438886,-1386.05863654,0.00032877,7]
[404581246,1770311438895,-1386.05863654,0.00032877,7]
[404581247,1770311438906,-1386.05863654,0.00032877,7]
[404581248,1770311438916,-1386.05863654,0.00032877,7]
[404581249,1770311438929,-1382.31253211,0.00032877,7]
[404581250,1770311438938,-1382.31253211,0.00032877,7]
[404581251,1770311438947,-1382.31253211,0.00032877,7]
[404581252,1770311438956,-1382.31253211,0.00032877,7]
[404581253,1770311438967,-1382.31253211,0.00032877,7]
[404581254,1770311438976,-1382.31253211,0.00032877,7]
[404581255,1770311438986,-1382.31253211,0.00032877,7]
[404581256,1770311438995,-1382.31253211,0.00032877,7]
[404581257,1770311439006,-1382.31253211,0.00032877,7]
[404581258,1770311439015,-1382.31253211,0.00032877,7]
[404581259,1770311439025,-1382.31253211,0.00032877,7]
[404581260,1770311439034,-1382.31253211,0.00032877,7]
[404581261,1770311439044,-1382.31253211,0.00032877,7]
[404581262,1770311439054,-1382.31253211,0.00032877,7]
[404581263,1770311439063,-1382.31253211,0.00032877,7]
[404581264,1770311439073,-1382.31253211,0.00032877,7]
[404581265,1770311439083,-1382.31253211,0.00032877,7]
[404581266,1770311439093,-1382.31253211,0.00032877,7]
[404581267,1770311439103,-1382.31253211,0.00032877,7]
[404581268,1770311439113,-1382.31253211,0.00032877,7]
[404581269,1770311439124,-1382.31253211,0.00032877,7]
[404581270,1770311439133,-1382.31253211,0.00032877,7]
[404581271,1770311439142,-1382.31253211,0.00032877,7]
[404581272,1770311439159,-1382.31253211,0.00032877,7]
[404581273,1770311439169,-1382.31253211,0.00032877,7]
[404581274,1770311439179,-1382.31253211,0.00032877,7]
[404581275,1770311439188,-1382.31253211,0.00032877,7]
[404581276,1770311439198,-1382.31253211,0.00032877,7]
[404581277,1770311439207,-1382.31253211,0.00032877,7]
[404581278,1770311439217,-1382.31253211,0.00032877,7]
[404581279,1770311439226,-1382.31253211,0.00032877,7]
[404581280,1770311439235,-1382.31253211,0.00032877,7]
[404581281,1770311439244,-1382.31253211,0.00032877,7]
[404581282,1770311439253,-1382.31253211,0.00032877,7]
[404581283,1770311439263,-1382.31253211,0.00032877,7]
[404581284,1770311439271,-1382.31253211,0.00032877,7]
[404581285,1770311439284,-1382.3125321,0.00032877,7]
[404581287,1770311439293,-1000.0,0.00032992,30]
[404581288,1770311439302,-1000.0,0.00032992,30]
[404581289,1770311439312,-579.0,0.00032992,30]
[404581290,1770311439321,-11100.53744667,0.000332,117]
[404581291,1770311439330,-1774.76,0.00034237,3]
[404581292,1770311439339,-887.38,0.00034237,3]
[404581293,1770311439349,-443.68,0.00034237,3]
[404581294,1770311439358,-309.06,0.00034237,3]
[404581295,1770311439367,-363.44,0.00034237,3]
[404581296,1770311439376,-741.26793723,0.000345,2]
[404581297,1770311439386,-1041.66666667,0.000345,2]
[404581298,1770311439404,-741.26793723,0.000349,7]
[404581300,1770311439413,-11100.53744667,0.00035585,120]
[404581301,1770311439423,-1000.0,0.00036291,30]
[404581302,1770311439432,-1000.0,0.00036291,30]
[404581303,1770311439442,-1000.0,0.00036291,30]
[404581304,1770311439451,-1134.82547192,0.00038581,10]
[404581306,1770311439460,-1895.7702605,0.00039039,2]
[404581307,1770311439470,-271.93250581,0.0003949,2]
[404581308,1770311439478,-281.25000001,0.00039676,120]
[404581309,1770311439487,-1020.85487083,0.00039676,120]
[404581310,1770311439496,-250.0,0.00039676,10]
[404581311,1770311439505,-250.0,0.00039676,10]
[404581312,1770311439514,-250.0,0.00039676,10]
[404581314,1770311439523,-352.102841,0.00039676,10]
[404581316,1770311439532,-1111.734098,0.0003991,3]
[404581317,1770311439541,-1000.0,0.0003992,60]
[404581318,1770311439550,-1000.0,0.0003992,60]
[404581319,1770311439559,-1000.0,0.0003992,60]
[404581320,1770311439569,-715.0,0.0003992,60]
[404581321,1770311439578,-50000.0,0.0004,30]
[404581322,1770311439587,-1508.0,0.00040676,2]
[404581323,1770311439596,-2664.0440817,0.00043059,2]
[404581324,1770311439605,-2157.0,0.00043432,2]
[404581325,1770311439614,-632.0,0.00043432,2]
[404581326,1770311439623,-1372.0,0.00043432,2]
[404581327,1770311439632,-420.0,0.00043444,2]
[404581328,1770311439641,-420.0,0.00043444,2]
[404581329,1770311439658,-719.0,0.00043444,2]
[404581330,1770311439667,-179.0,0.00043444,2]
[404581331,1770311439676,-1000.0,0.00043912,60]
[404581332,1770311439685,-1000.0,0.00043912,60]
[404581333,1770311439694,-1000.0,0.00043912,60]
[404581334,1770311439703,-500.0,0.00044186,30]
[404581335,1770311439712,-500.0,0.00044186,30]
[404581336,1770311439721,-500.0,0.00044186,30]
[404581337,1770311439730,-500.0,0.00044186,30]
[404581338,1770311439739,-500.0,0.00044186,30]
[404581339,1770311439748,-500.0,0.00044186,30]
[404581340,1770311439757,-500.0,0.00044186,30]
[404581341,1770311439766,-157.7819071,0.00044186,30]
[404581342,1770311439776,-286.0,0.00046,120]
[404581343,1770311439784,-223.50822564,0.00046194,2]
[404581344,1770311439793,-893.13886965,0.00046194,2]
[404581345,1770311439803,-2157.0,0.00046432,2]
[404581346,1770311439812,-632.0,0.00046432,2]
[404581347,1770311439821,-1372.0,0.00046432,2]
[404581348,1770311439830,-420.0,0.00046444,2]
[404581349,1770311439838,-420.0,0.00046444,2]
[404581350,1770311439847,-719.0,0.00046444,2]
[404581351,1770311439857,-179.0,0.00046444,2]
[404581352,1770311439867,-2151.31,0.000465,14]
[404581353,1770311439876,-250.0,0.00048,120]
[404581354,1770311439885,-446.65,0.00048325,15]
[404581355,1770311439894,-824.73418724,0.00048625,2]
[404581356,1770311439906,-593.83775091,0.00048625,2]
[404581357,1770311439915,-2448.2,0.00049032,15]
[404581358,1770311439925,-271.93250581,0.00049088,2]
[404581359,1770311439937,-466.01738649,0.00049188,18]
[404581360,1770311439946,-2157.0,0.00049432,2]
[404581362,1770311439956,-632.0,0.00049432,2]
[404581364,1770311439965,-1372.0,0.00049432,2]
[404581366,1770311439977,-420.0,0.00049444,2]
[404581368,1770311439986,-327.303,0.00049444,2]
[404581370,1770311439995,-719.0,0.00049444,2]
[404581372,1770311440004,-162.463,0.00049444,2]
[404581374,1770311440013,-45454.69,0.0004969,15]
[404581376,1770311440022,-500.0,0.00049698,60]
[404581378,1770311440031,-265.27458,0.00049822,60]
[404581380,1770311440040,-820.50587954,0.000499,2]
[404581382,1770311440048,-3335.202294,0.0004999,4]
[404581384,1770311440058,-111995.02235642,0.0005,30]
[404581385,1770311440067,-185.2,0.0005,14]
[404581388,1770311440077,-200.0,0.0005,120]
[404581390,1770311440088,-161.0,0.0005,120]
[404581391,1770311440097,-500.0,0.00050027,18]
[404581392,1770311440106,-167.41,0.00050136,30]
[404581393,1770311440115,-2605.040061,0.00050232,60]
[404581394,1770311440123,-203.270474,0.0005035,60]
[404581395,1770311440132,-217.359813,0.00050454,60]
[404581396,1770311440141,-2151.31,0.000505,14]
[404581397,1770311440152,-1362.59,0.00050521,15]
[404581398,1770311440161,-167.41,0.00050821,32]
[404581399,1770311440170,-971.32,0.00051206,15]
[404581400,1770311440179,-1895.7702605,0.00051211,28]
[404581401,1770311440188,-245.538491,0.00051468,60]
[404581402,1770311440197,-167.41,0.00051506,34]
[404581403,1770311440206,-820.50587952,0.0005151,2]
[404581404,1770311440215,-186.654382,0.00051775,60]
[404581405,1770311440224,-2047.35,0.00051838,15]
[404581406,1770311440233,-187.651,0.00051913,94]
[404581407,1770311440241,-300.0,0.00052,120]
[404581408,1770311440251,-167.41,0.00052191,36]
[404581409,1770311440260,-161.0,0.000522,120]
[404581410,1770311440269,-2157.0,0.00052432,120]
[404581411,1770311440278,-632.0,0.00052432,120]
[404581413,1770311440287,-1369.0,0.00052432,120]
[404581414,1770311440296,-420.0,0.00052444,2]
[404581415,1770311440305,-719.0,0.00052444,2]
[404581417,1770311440314,-526.51,0.00052559,15]
[404581419,1770311440323,-167.41,0.00052876,38]
[404581421,1770311440331,-150.0,0.00052882,120]
[404581423,1770311440340,-800.0,0.00052902,30]
[404581425,1770311440349,-820.50587952,0.00053119,2]
[404581427,1770311440358,-2151.31,0.000532,14]
[404581429,1770311440367,-167.41,0.00053561,40]
[404581431,1770311440376,-926.68,0.00053877,15]
[404581433,1770311440385,-500.0,0.00054,120]
[404581435,1770311440394,-167.41,0.00054246,42]
[404581438,1770311440406,-500.0,0.00054337,120]
[404581440,1770311440415,-26525.55,0.00054484,15]
[404581442,1770311440424,-151.0,0.000545,24]
[404581444,1770311440433,-161.0,0.000545,120]
[404581446,1770311440442,-13261.29005856,0.00054525,30]
[404581448,1770311440451,-192.74033012,0.00054528,30]
[404581450,1770311440460,-500.0,0.00054585,120]
[404581452,1770311440468,-1514.43634086,0.000546,120]
[404581454,1770311440477,-820.50587952,0.00054729,2]
[404581456,1770311440486,-2223.468196,0.00054783,4]
[404581470,1770311440606,-6670.404588,0.00054784,4]
[404581471,1770311440617,-1000.0,0.00054793,120]
[404581473,1770311440626,-1000.0,0.00054793,120]
[404581475,1770311440634,-1000.0,0.00054793,120]
[404581477,1770311440643,-1000.0,0.00054793,120]
[404581479,1770311440655,-1000.0,0.00054793,120]
[404581481,1770311440664,-1000.0,0.00054793,120]
[404581483,1770311440673,-433.23195527,0.00054793,120]
[404581485,1770311440682,-1000.0,0.00054793,120]
[404581487,1770311440690,-250.0,0.00054793,120]
[404581489,1770311440699,-250.0,0.00054793,120]
[404581491,1770311440708,-250.0,0.00054793,120]
[404581493,1770311440716,-151.0,0.00054793,120]
[404581495,1770311440725,-1000.0,0.00054793,120]
[404581497,1770311440733,-250.0,0.00054793,120]
[404581499,1770311440742,-250.0,0.00054793,120]
[404581501,1770311440751,-250.0,0.00054793,120]
[404581502,1770311440760,-156.587,0.00054793,120]
[404581504,1770311440769,-250.0,0.00054793,120]
[404581506,1770311440778,-1000.0,0.00054793,120]
[404581508,1770311440786,-250.0,0.00054793,120]
[404581510,1770311440795,-250.0,0.00054793,120]
[404581512,1770311440803,-250.0,0.00054793,120]
[404581514,1770311440812,-162.380719,0.00054793,120]
[404581516,1770311440822,-250.0,0.00054793,120]
[404581518,1770311440831,-1000.0,0.00054793,120]
[404581520,1770311440840,-250.0,0.00054793,120]
[404581522,1770311440849,-250.0,0.00054793,120]
[404581524,1770311440859,-250.0,0.00054793,120]
[404581526,1770311440867,-168.3888056,0.00054793,120]
[404581528,1770311440876,-250.0,0.00054793,120]
[404581529,1770311440885,-1000.0,0.00054793,120]
[404581531,1770311440894,-250.0,0.00054793,120]
[404581533,1770311440905,-250.0,0.00054793,120]
[404581535,1770311440914,-250.0,0.00054793,120]
[404581537,1770311440923,-174.61919141,0.00054793,120]
[404581539,1770311440935,-250.0,0.00054793,120]
[404581541,1770311440944,-160.0,0.00054793,120]
[404581543,1770311440954,-250.0,0.00054793,120]
[404581545,1770311440962,-1000.0,0.00054793,120]
[404581547,1770311440973,-250.0,0.00054793,120]
[404581549,1770311440981,-250.0,0.00054793,120]
[404581551,1770311440990,-250.0,0.00054793,120]
[404581553,1770311440999,-2000.0,0.00054793,120]
[404581555,1770311441008,-169.65683288,0.00054793,120]
[404581557,1770311441017,-250.0,0.00054793,120]
[404581559,1770311441026,-250.0,0.00054793,120]
[404581561,1770311441035,-1000.0,0.00054793,120]
[404581563,1770311441044,-181.08010149,0.00054793,120]
[404581565,1770311441053,-250.0,0.00054793,120]
[404581567,1770311441061,-250.0,0.00054793,120]
[404581569,1770311441070,-2000.0,0.00054793,120]
[404581571,1770311441078,-353.3040506,0.00054793,120]
[404581573,1770311441087,-250.0,0.00054793,120]
[404581575,1770311441096,-250.0,0.00054793,120]
[404581577,1770311441105,-1000.0,0.00054793,120]
[404581579,1770311441115,-187.78006525,0.00054793,120]
[404581581,1770311441123,-250.0,0.00054793,120]
[404581583,1770311441132,-2000.0,0.00054793,120]
[404581585,1770311441141,-250.0,0.00054793,120]
[404581587,1770311441151,-250.0,0.00054793,120]
[404581589,1770311441159,-1000.0,0.00054793,120]
[404581591,1770311441168,-250.0,0.00054793,120]
[404581593,1770311441178,-194.72792766,0.00054793,120]
[404581595,1770311441187,-250.0,0.00054793,120]
[404581596,1770311441195,-2000.0,0.00054793,120]
[404581598,1770311441205,-250.0,0.00054793,120]
[404581600,1770311441214,-250.0,0.00054793,120]
[404581602,1770311441222,-201.93286099,0.00054793,120]
[404581604,1770311441231,-250.0,0.00054793,120]
[404581606,1770311441240,-1000.0,0.00054793,120]
[404581608,1770311441249,-250.0,0.00054793,120]
[404581610,1770311441257,-2000.0,0.00054793,120]
[404581612,1770311441266,-310.74953557,0.00054793,120]
[404581614,1770311441275,-250.0,0.00054793,120]
[404581616,1770311441284,-209.40437684,0.00054793,120]
[404581618,1770311441293,-1000.0,0.00054793,120]
[404581620,1770311441301,-250.0,0.00054793,120]
[404581622,1770311441310,-250.0,0.00054793,120]
[404581624,1770311441319,-2000.0,0.00054793,120]
[404581626,1770311441329,-250.0,0.00054793,120]
[404581628,1770311441338,-250.0,0.00054793,120]
[404581630,1770311441347,-217.15233878,0.00054793,120]
[404581631,1770311441355,-250.0,0.00054793,120]
[404581633,1770311441364,-1000.0,0.00054793,120]
[404581635,1770311441373,-250.0,0.00054793,120]
[404581637,1770311441381,-2000.0,0.00054793,120]
[404581639,1770311441390,-250.0,0.00054793,120]
[404581641,1770311441400,-250.0,0.00054793,120]
[404581643,1770311441409,-225.18697532,0.00054793,120]
[404581645,1770311441417,-250.0,0.00054793,120]
[404581647,1770311441426,-1000.0,0.00054793,120]
[404581649,1770311441435,-250.0,0.00054793,120]
[404581651,1770311441444,-2000.0,0.00054793,120]
[404581653,1770311441452,-151.0,0.00054793,120]
[404581655,1770311441461,-250.0,0.00054793,120]
[404581657,1770311441471,-250.0,0.00054793,120]
[404581659,1770311441480,-233.51889341,0.00054793,120]
[404581661,1770311441490,-250.0,0.00054793,120]
[404581663,1770311441499,-1000.0,0.00054793,120]
[404581665,1770311441508,-2000.0,0.00054793,120]
[404581667,1770311441517,-250.0,0.00054793,120]
[404581669,1770311441525,-151.0,0.00054793,120]
[404581671,1770311441536,-250.0,0.00054793,120]
[404581673,1770311441545,-250.0,0.00054793,120]
[404581675,1770311441554,-242.15909246,0.00054793,120]
[404581677,1770311441561,-250.0,0.00054793,120]
[404581679,1770311441570,-250.0,0.00054793,120]
[404581681,1770311441579,-2000.0,0.00054793,120]
[404581683,1770311441587,-151.0,0.00054793,120]
[404581685,1770311441597,-250.0,0.00054793,120]
[404581687,1770311441606,-250.0,0.00054793,120]
[404581689,1770311441620,-251.11897888,0.00054793,120]
[404581690,1770311441634,-250.0,0.00054793,120]
[404581692,1770311441643,-250.0,0.00054793,120]
[404581694,1770311441658,-2000.0,0.00054793,120]
[404581696,1770311441666,-151.0,0.00054793,120]
[404581698,1770311441676,-250.0,0.00054793,120]
[404581700,1770311441689,-283.68203396,0.00054793,120]
[404581702,1770311441710,-250.0,0.00054793,120]
[404581704,1770311441726,-250.0,0.00054793,120]
[404581706,1770311441737,-2000.0,0.00054793,120]
[404581707,1770311441748,-151.0,0.00054793,120]
[404581709,1770311441759,-250.0,0.00054793,120]
[404581711,1770311441771,-250.0,0.00054793,120]
[404581714,1770311441788,-2000.0,0.00054793,120]
[404581716,1770311441798,-250.0,0.00054793,120]
[404581717,1770311441809,-151.0,0.00054793,120]
[404581719,1770311441821,-250.0,0.00054793,120]
[404581721,1770311441831,-250.0,0.00054793,120]
[404581723,1770311441842,-2000.0,0.00054793,120]
[404581725,1770311441851,-500.0,0.00054793,120]
[404581727,1770311441862,-151.0,0.00054793,120]
[404581729,1770311441871,-250.0,0.00054793,120]
[404581731,1770311441881,-250.0,0.00054793,120]
[404581733,1770311441892,-2000.0,0.00054793,120]
[404581735,1770311441906,-500.0,0.00054793,120]
[404581737,1770311441919,-151.0,0.00054793,120]
[404581739,1770311441932,-250.0,0.00054793,120]
[404581740,1770311441943,-2000.0,0.00054793,120]
[404581742,1770311441952,-500.0,0.00054793,120]
[404581744,1770311441962,-260.4103811,0.00054793,120]
[404581746,1770311441971,-2000.0,0.00054793,120]
[404581748,1770311441986,-500.0,0.00054793,120]
[404581750,1770311441999,-270.0455652,0.00054793,120]
[404581752,1770311442011,-2000.0,0.00054793,120]
[404581754,1770311442020,-500.0,0.00054793,120]
[404581756,1770311442031,-280.03725112,0.00054793,120]
[404581758,1770311442040,-2000.0,0.00054793,120]
[404581760,1770311442049,-500.0,0.00054793,120]
[404581762,1770311442058,-290.39862941,0.00054793,120]
[404581764,1770311442067,-500.0,0.00054793,120]
[404581766,1770311442076,-301.1433787,0.00054793,120]
[404581768,1770311442085,-500.0,0.00054793,120]
[404581770,1770311442094,-2000.0,0.00054793,120]
[404581772,1770311442103,-151.0,0.00054793,120]
[404581774,1770311442112,-151.0,0.00054793,120]
[404581776,1770311442121,-217.63717586,0.00054793,120]
[404581778,1770311442130,-151.0,0.00054793,120]
[404581780,1770311442139,-151.0,0.00054793,120]
[404581782,1770311442150,-151.0,0.00054793,120]
[404581784,1770311442159,-151.0,0.00054793,120]
[404581786,1770311442168,-151.0,0.00054793,120]
[404581788,1770311442178,-500.0,0.00054793,120]
[404581790,1770311442187,-151.0,0.00054793,120]
[404581792,1770311442196,-500.0,0.00054793,120]
[404581794,1770311442206,-151.0,0.00054793,120]
[404581796,1770311442215,-500.0,0.00054793,120]
[404581798,1770311442224,-151.0,0.00054793,120]
[404581800,1770311442233,-500.0,0.00054793,120]
[404581802,1770311442241,-151.0,0.00054793,120]
[404581804,1770311442250,-500.0,0.00054793,120]
[404581806,1770311442259,-151.0,0.00054793,120]
[404581808,1770311442268,-500.0,0.00054793,120]
[404581810,1770311442277,-151.0,0.00054793,120]
[404581811,1770311442287,-500.0,0.00054793,120]
[404581813,1770311442297,-153.80257143,0.00054793,120]
[404581815,1770311442307,-500.0,0.00054793,120]
[404581817,1770311442315,-262.19,0.00054794,120]
[404581819,1770311442324,-500.0,0.00054794,120]
[404581821,1770311442333,-500.0,0.00054794,120]
[404581823,1770311442342,-500.0,0.00054794,120]
[404581825,1770311442351,-1000.0,0.00054794,2]
[404581827,1770311442360,-500.0,0.00054794,120]
[404581829,1770311442368,-1911.23,0.00054794,120]
[404581831,1770311442378,-500.0,0.00054794,120]
[404581833,1770311442387,-500.0,0.00054794,120]
[404581835,1770311442396,-551.07375841,0.00054794,120]
[404581837,1770311442410,-606.71,0.00054794,120]
[404581839,1770311442419,-500.0,0.00054794,120]
[404581841,1770311442428,-6082.02,0.00054794,120]
[404581843,1770311442437,-500.0,0.00054794,120]
[404581845,1770311442446,-1048.62,0.00054794,120]
[404581847,1770311442455,-507.22762645,0.00054794,60]
[404581849,1770311442464,-553.53179889,0.00054794,120]
[404581851,1770311442473,-559.24109974,0.00054794,120]
[404581853,1770311442482,-500.0,0.00054794,120]
[404581855,1770311442491,-500.0,0.00054794,60]
[404581857,1770311442500,-535.55943253,0.00054794,120]
[404581859,1770311442509,-500.0,0.00054794,54]
[404581861,1770311442518,-500.0,0.00054794,120]
[404581863,1770311442527,-1000.0,0.00054794,120]
[404581865,1770311442536,-500.0,0.00054794,120]
[404581867,1770311442545,-500.0,0.00054794,120]
[404581869,1770311442554,-500.0,0.00054794,120]
[404581871,1770311442563,-500.0,0.00054794,120]
[404581873,1770311442571,-577.35228612,0.00054794,120]
[404581874,1770311442580,-500.0,0.00054794,120]
[404581875,1770311442589,-500.0,0.00054794,120]
[404581876,1770311442600,-519.68226696,0.00054794,120]
[404581877,1770311442609,-500.0,0.00054794,120]
[404581878,1770311442618,-609.04038245,0.00054794,120]
[404581879,1770311442627,-500.0,0.00054794,120]
[404581880,1770311442636,-500.0,0.00054794,120]
[404581881,1770311442644,-500.0,0.00054794,120]
[404581882,1770311442658,-607.89749218,0.00054794,120]
[404581883,1770311442667,-500.0,0.00054794,120]
[404581884,1770311442676,-500.0,0.00054794,120]
[404581885,1770311442684,-500.0,0.00054794,120]
[404581886,1770311442694,-500.0,0.00054794,120]
[404581887,1770311442703,-500.0,0.00054794,120]
[404581888,1770311442712,-861.88,0.00054794,30]
[404581890,1770311442720,-500.0,0.00054794,120]
[404581892,1770311442730,-500.0,0.00054794,120]
[404581894,1770311442738,-500.0,0.00054794,120]
[404581896,1770311442747,-632.74,0.00054794,120]
[404581898,1770311442756,-576.85357948,0.00054794,120]
[404581900,1770311442770,-528.64781115,0.00054794,120]
[404581902,1770311442780,-775.81,0.00054794,120]
[404581911,1770311442885,-908.65,0.00054794,7]